fUST/lending_fUST_20240731
["ID","MTS","AMOUNT","RATE_DAILY","PERIOD"]
[333726900,1722413439101,-632.1,0.00013698,2]
[333726901,1722413439111,-500.0,0.00013698,2]
[333726902,1722413439121,-505.70967278,0.00013698,2]
[333726903,1722413439132,-500.0,0.00013698,2]
[333726904,1722413439142,-500.0,0.00013698,2]
[333726905,1722413439151,-500.0,0.00013698,2]
[333726906,1722413439160,-500.0,0.00013698,2]
[333726907,1722413439170,-504.37885215,0.00013698,2]
[333726908,1722413439179,-500.0,0.00013698,2]
[333726909,1722413439189,-515.19925319,0.00013698,2]
[333726910,1722413439199,-500.0,0.00013698,2]
[333726911,1722413439208,-500.0,0.00013698,2]
[333726912,1722413439219,-500.0,0.00013698,2]
[333726913,1722413439230,-504.21082443,0.00013698,2]
[333726914,1722413439240,-500.0,0.00013698,2]
[333726916,1722413439250,-500.0,0.00013698,2]
[333726917,1722413439261,-521.94475865,0.00013698,2]
[333726918,1722413439270,-500.0,0.00013698,2]
[333726919,1722413439280,-500.0,0.00013698,2]
[333726920,1722413439291,-500.2630499,0.00013698,2]
[333726921,1722413439301,-506.79672606,0.00013698,2]
[333726922,1722413439312,-500.0,0.00013698,2]
[333726923,1722413439323,-500.0,0.00013698,2]
[333726924,1722413439335,-500.0,0.00013698,2]
[333726925,1722413439345,-506.54250722,0.00013698,2]
[333726926,1722413439354,-500.0,0.00013698,2]
[333726927,1722413439363,-500.0,0.00013698,2]
[333726928,1722413439374,-976.52,0.00013698,2]
[333726929,1722413439384,-500.0,0.00013698,2]
[333726930,1722413439394,-500.0,0.00013698,2]
[333726931,1722413439404,-500.0,0.00013698,2]
[333726933,1722413439416,-500.0,0.00013698,2]
[333726934,1722413439426,-500.0,0.00013698,2]
[333726935,1722413439435,-500.0,0.00013698,2]
[333726936,1722413439446,-500.0,0.00013698,2]
[333726937,1722413439456,-501.17906568,0.00013698,2]
[333726939,1722413439466,-501.23449232,0.00013698,2]
[333726942,1722413439478,-1341.96,0.00013698,2]
[333726944,1722413439487,-500.0,0.00013698,2]
[333726945,1722413439497,-500.0,0.00013698,2]
[333726946,1722413439506,-500.0,0.00013698,2]
[333726947,1722413439516,-500.0,0.00013698,2]
[333726948,1722413439526,-500.0,0.00013698,2]
[333726949,1722413439536,-500.0,0.00013698,2]
[333726950,1722413439546,-503.60558488,0.00013698,2]
[333726951,1722413439555,-697.14,0.00013698,2]
[333726952,1722413439564,-500.0,0.00013698,2]
[333726953,1722413439573,-500.0,0.00013698,2]
[333726954,1722413439582,-460.82610274,0.00013698,2]
[333726956,1722413440050,-39.17389726,0.00013698,2]
[333726957,1722413440061,-500.0,0.00013698,2]
[333726958,1722413440072,-500.0,0.00013698,2]
[333726959,1722413440083,-500.0,0.00013698,2]
[333726960,1722413440094,-500.0,0.00013698,2]
[333726961,1722413440105,-543.63787766,0.00013698,2]
[333726962,1722413440116,-500.0,0.00013698,2]
[333726963,1722413440126,-586.35956034,0.00013698,2]
[333726964,1722413440136,-500.0,0.00013698,2]
[333726965,1722413440146,-520.09439415,0.00013698,2]
[333726967,1722413440156,-255.15035679,0.00013698,2]
[333726969,1722413440165,-1039.58,0.00013698,2]
[333726971,1722413440174,-500.0,0.00013698,2]
[333726973,1722413440184,-500.89574356,0.00013698,2]
[333726975,1722413440194,-1010.57,0.00013698,2]
[333726977,1722413440204,-854.48,0.00013698,2]
[333726978,1722413440213,-512.62493774,0.00013698,2]
[333726979,1722413440222,-500.0,0.00013698,2]
[333726980,1722413440233,-500.0,0.00013698,2]
[333726981,1722413440242,-500.0,0.00013698,2]
[333726982,1722413440251,-496.0309722,0.00013698,2]
[333726983,1722413440262,-500.0,0.00013698,2]
[333726984,1722413440272,-500.0,0.00013698,2]
[333726985,1722413440283,-501.45744488,0.00013698,2]
[333726986,1722413440293,-500.0,0.00013698,2]
[333726987,1722413440303,-500.0,0.00013698,2]
[333726988,1722413440313,-500.0,0.00013698,2]
[333726989,1722413440323,-942.5,0.00013698,2]
[333726990,1722413440332,-513.75998381,0.00013698,2]
[333726991,1722413440343,-500.0,0.00013698,2]
[333726992,1722413440352,-500.0,0.00013698,2]
[333726993,1722413440362,-500.0,0.00013698,2]
[333726994,1722413440372,-500.0,0.00013698,2]
[333726995,1722413440382,-500.0,0.00013698,2]
[333726996,1722413440391,-901.03,0.00013698,2]
[333726997,1722413440401,-500.0,0.00013698,2]
[333726998,1722413440414,-500.0,0.00013698,2]
[333726999,1722413440425,-500.0,0.00013698,2]
[333727000,1722413440435,-500.0,0.00013698,2]
[333727001,1722413440446,-500.0,0.00013698,2]
[333727002,1722413440456,-518.58772222,0.00013698,2]
[333727003,1722413440466,-434.37259152,0.00013698,2]
[333727004,1722413440476,-250.9238597,0.00013698,2]
[333727005,1722413440487,-500.0,0.00013698,2]
[333727006,1722413440498,-1146.26,0.00013698,2]
[333727007,1722413440508,-500.0,0.00013698,2]
[333727008,1722413440519,-500.0,0.00013698,2]
[333727009,1722413440530,-500.0,0.00013698,2]
[333727010,1722413440541,-500.0,0.00013698,2]
[333727011,1722413440551,-500.0,0.00013698,2]
[333727012,1722413440561,-500.0,0.00013698,2]
[333727013,1722413440572,-500.0,0.00013698,2]
[333727014,1722413440583,-500.0,0.00013698,2]
[333727015,1722413440594,-500.0,0.00013698,2]
[333727016,1722413440604,-500.0,0.00013698,2]
[333727017,1722413440614,-505.00582573,0.00013698,2]
[333727018,1722413440625,-500.0,0.00013698,2]
[333727019,1722413440636,-500.0,0.00013698,2]
[333727020,1722413440646,-500.0,0.00013698,2]
[333727021,1722413440655,-500.0,0.00013698,2]
[333727022,1722413440665,-500.0,0.00013698,2]
[333727023,1722413440676,-523.34935987,0.00013698,2]
[333727024,1722413440686,-150.18772935,0.00013698,2]
[333727025,1722413440695,-500.0,0.00013698,2]
[333727026,1722413440708,-500.0,0.00013698,2]
[333727027,1722413440720,-645.3645662,0.00013698,2]
[333727028,1722413440731,-500.0,0.00013698,2]
[333727029,1722413440743,-500.0,0.00013698,2]
[333727030,1722413440755,-500.0,0.00013698,2]
[333727031,1722413440768,-500.0,0.00013698,2]
[333727032,1722413440777,-500.0,0.00013698,2]
[333727033,1722413440788,-500.0,0.00013698,2]
[333727034,1722413440798,-501.24518072,0.00013698,2]
[333727035,1722413440808,-500.0,0.00013698,2]
[333727036,1722413440817,-500.0,0.00013698,2]
[333727037,1722413440827,-2395.23,0.00013698,2]
[333727038,1722413440839,-500.0,0.00013698,2]
[333727039,1722413440848,-500.0,0.00013698,2]
[333727040,1722413440858,-500.0,0.00013698,2]
[333727041,1722413440867,-500.0,0.00013698,2]
[333727042,1722413440878,-501.45174115,0.00013698,2]
[333727043,1722413440887,-500.0,0.00013698,2]
[333727044,1722413440896,-500.0,0.00013698,2]
[333727045,1722413440907,-500.0,0.00013698,2]
[333727046,1722413440919,-500.0,0.00013698,2]
[333727047,1722413440930,-500.0,0.00013698,2]
[333727048,1722413440943,-500.0,0.00013698,2]
[333727049,1722413440954,-280.05291229,0.00013698,2]
[333727050,1722413440964,-629.24943078,0.00013698,2]
[333727051,1722413440975,-512.30960775,0.00013698,2]
[333727052,1722413440985,-571.4685474,0.00013698,2]
[333727053,1722413440994,-500.0,0.00013698,2]
[333727054,1722413441003,-500.0,0.00013698,2]
[333727055,1722413441013,-506.30918997,0.00013698,2]
[333727056,1722413441022,-500.0,0.00013698,2]
[333727057,1722413441032,-503.25740556,0.00013698,2]
[333727058,1722413441041,-500.0,0.00013698,2]
[333727059,1722413441050,-500.0,0.00013698,2]
[333727060,1722413441060,-500.0,0.00013698,2]
[333727061,1722413441070,-220.82620093,0.00013698,2]
[333727074,1722413445988,-286.27817444,0.00013698,2]
[333727075,1722413445998,-287.16104384,0.00013698,2]
[333727076,1722413446008,-500.0,0.00013698,2]
[333727077,1722413446018,-500.0,0.00013698,2]
[333727078,1722413446027,-500.0,0.00013698,2]
[333727079,1722413446038,-218.18326497,0.00013698,2]
[333727080,1722413446047,-500.0,0.00013698,2]
[333727081,1722413446058,-470.00421233,0.00013698,2]
[333727082,1722413446069,-500.0,0.00013698,2]
[333727083,1722413446080,-506.03378128,0.00013698,2]
[333727085,1722413446090,-505.047797,0.00013698,2]
[333727087,1722413446099,-500.0,0.00013698,2]
[333727089,1722413446109,-513.41517401,0.00013698,2]
[333727090,1722413446122,-410.94482599,0.00013698,2]
[333727091,1722413446132,-880.98,0.00013698,2]
[333727092,1722413446142,-500.0,0.00013698,2]
[333727093,1722413446152,-1154.45,0.00013698,2]
[333727094,1722413446162,-2589.22,0.00013698,2]
[333727095,1722413446171,-500.0,0.00013698,2]
[333727096,1722413446181,-500.0,0.00013698,2]
[333727097,1722413446191,-94.405174,0.00013698,2]
[333727098,1722413446204,-333.3986771,0.00013698,2]
[333727110,1722413819506,1000.0,0.00025,60]
[333727111,1722413833203,503.69350422,0.00025,120]
[333727115,1722414385580,-1000.0,0.00014,14]
[333727119,1722414396206,-300.0,0.000145,30]
[333727130,1722414418872,-1000.0,0.00016,16]
[333727135,1722414430288,-1000.0,0.00015,15]
[333727153,1722414463317,-999.0,0.00030514,7]
[333727178,1722414527401,-1000.0,0.000145,7]
[333727222,1722414632010,-166.6666668,0.00012232,2]
[333727224,1722414632022,-902.0454214,0.00012793,2]
[333727226,1722414632032,-902.04542136,0.00012798,2]
[333727228,1722414632041,-902.04542136,0.00012803,2]
[333727230,1722414632051,-902.04542136,0.00012808,2]
[333727232,1722414632061,-902.04542136,0.00012813,2]
[333727234,1722414632071,-902.04542136,0.00012817,2]
[333727236,1722414632081,-902.04542136,0.00012822,2]
[333727238,1722414632092,-902.04542136,0.00012827,2]
[333727240,1722414632103,-902.04542136,0.00012832,2]
[333727242,1722414632114,-902.04542136,0.00012837,2]
[333727245,1722414632125,-902.04542136,0.00012842,2]
[333727247,1722414632136,-902.04542136,0.00012847,2]
[333727249,1722414632146,-902.04542136,0.00012852,2]
[333727251,1722414632158,-902.04542136,0.00012857,2]
[333727253,1722414632168,-902.04542136,0.00012862,2]
[333727275,1722414632419,-902.04542136,0.00012866,2]
[333727277,1722414632431,-167.024069,0.00012986,2]
[333727279,1722414632441,-300.0,0.00012999,2]
[333727281,1722414632453,-1000.0,0.00013,4]
[333727282,1722414632463,-367.7265943,0.00013453,2]
[333727283,1722414632472,-5310.91571796,0.0001346,2]
[333727285,1722414632482,-5004.27534854,0.00013687,2]
[333727287,1722414632494,-434.4293937,0.00013687,2]
[333727316,1722414640229,-902.04542136,0.00012871,2]
[333727317,1722414640239,-360.06562358,0.00013451,2]
[333727318,1722414640249,-3580.4360527,0.00013656,2]
[333727319,1722414640259,-21541.96167748,0.00013687,2]
[333727320,1722414640269,-851.72,0.00013687,2]
[333727321,1722414640279,-851.72,0.00013687,2]
[333727322,1722414640288,-18968.44129652,0.00013688,2]
[333727323,1722414640300,-5000.0,0.00013688,2]
[333727324,1722414640310,-1456.40696789,0.00013688,2]
[333727325,1722414640322,-86092.4484,0.00013688,2]
[333727372,1722414712438,288.43290652,9.999e-05,2]
[333727373,1722414780460,218.09499306,9.999e-05,2]
[333727374,1722414783211,472.43520923,9.999e-05,2]
[333727376,1722414792947,150.0,0.000145,30]
[333727404,1722415698526,206.71697477,9.999e-05,2]
[333727412,1722415760627,206.48007837,9.999e-05,2]
[333727414,1722415768737,488.97563433,9.999e-05,2]
[333727415,1722415769551,2106.31551891,9.999e-05,2]
[333727416,1722415772781,12184.6112389,9.999e-05,2]
[333727417,1722415775413,155.54138296,9.999e-05,2]
[333727418,1722415778025,218.09499306,9.999e-05,2]
[333727485,1722415832606,-167.024069,0.00012986,2]
[333727486,1722415832619,-332.975931,0.00013,5]
[333727502,1722415838299,-667.024069,0.00013,5]
[333727503,1722415838310,-5310.91571796,0.00013162,2]
[333727504,1722415838324,-367.7265943,0.00013349,2]
[333727505,1722415838338,-152.54184496,0.00013363,2]
[333727506,1722415838351,-300.0,0.00013686,2]
[333727507,1722415838363,-18968.44129751,0.00013687,2]
[333727508,1722415838374,-2132.84,0.00013687,2]
[333727509,1722415838386,-2132.84,0.00013687,2]
[333727510,1722415838396,-2132.84,0.00013687,2]
[333727511,1722415838407,-9248.54477377,0.00013688,5]
[333727512,1722415838418,-180747.323029,0.00013688,2]
[333727513,1722415838431,-22593.4153786,0.00013689,2]
[333727514,1722415838443,-2132.84,0.00013689,2]
[333727515,1722415838456,-22593.4153786,0.0001369,2]
[333727516,1722415838468,-2132.84,0.00013697,2]
[333727517,1722415838479,-2132.84,0.00013697,2]
[333727518,1722415838490,-2132.84,0.00013697,2]
[333727519,1722415838501,-2132.84,0.00013697,2]
[333727520,1722415838512,-2132.84,0.00013697,2]
[333727521,1722415838522,-2132.84,0.00013697,2]
[333727522,1722415838533,-2132.84,0.00013697,2]
[333727523,1722415838544,-2132.84,0.00013697,2]
[333727524,1722415838555,-2132.84,0.00013697,2]
[333727525,1722415838565,-24912.97251412,0.00013698,5]
[333727526,1722415838576,-500.0,0.00013698,2]
[333727527,1722415838587,-500.0,0.00013698,2]
[333727528,1722415838598,-213.4967533,0.00013698,2]
[333727529,1722415838609,-490.01928426,0.00013698,2]
[333727530,1722415838621,-500.0,0.00013698,2]
[333727531,1722415838633,-500.0,0.00013698,2]
[333727532,1722415838644,-500.0,0.00013698,2]
[333727533,1722415838654,-500.0,0.00013698,2]
[333727534,1722415838666,-477.87547608,0.00013698,2]
[333727535,1722415838676,-500.0,0.00013698,2]
[333727536,1722415838687,-243.36264282,0.00013698,2]
[333727537,1722415838700,-500.0,0.00013698,2]
[333727538,1722415838710,-156.63735718,0.00013698,2]
[333727539,1722415838721,-500.0,0.00013698,2]
[333727540,1722415838731,-568.553508,0.00013698,2]
[333727541,1722415838742,-317.44415213,0.00013698,2]
[333727542,1722415838753,-500.0,0.00013698,2]
[333727543,1722415838763,-630.81511723,0.00013698,2]
[333727544,1722415838774,-513.47507391,0.00013698,2]
[333727545,1722415838785,-300.0,0.00013698,2]
[333727546,1722415838797,-300.0,0.00013698,2]
[333727547,1722415838807,-532.79055912,0.00013698,2]
[333727548,1722415838820,-500.0,0.00013698,2]
[333727549,1722415838830,-500.0,0.00013698,2]
[333727550,1722415838841,-220.82620093,0.00013698,2]
[333727551,1722415838851,-500.0,0.00013698,2]
[333727552,1722415838863,-170.0,0.00013698,2]
[333727553,1722415838875,-500.0,0.00013698,2]
[333727554,1722415838887,-500.0,0.00013698,2]
[333727555,1722415838900,-500.0,0.00013698,2]
[333727556,1722415838911,-500.0,0.00013698,2]
[333727557,1722415838923,-500.0,0.00013698,2]
[333727558,1722415838934,-151.239084,0.00013698,2]
[333727559,1722415838945,-505.87687427,0.00013698,2]
[333727560,1722415838955,-500.0,0.00013698,2]
[333727561,1722415838966,-500.0,0.00013698,2]
[333727562,1722415838977,-500.0,0.00013698,2]
[333727563,1722415838986,-500.0,0.00013698,2]
[333727564,1722415839222,-500.0,0.00013698,2]
[333727565,1722415839246,-522.23065789,0.00013698,2]
[333727566,1722415839257,-511.11068816,0.00013698,2]
[333727567,1722415839267,-599.15,0.00013698,2]
[333727568,1722415839277,-500.0,0.00013698,2]
[333727569,1722415839287,-500.0,0.00013698,2]
[333727570,1722415839297,-500.0,0.00013698,2]
[333727571,1722415839306,-558.57406143,0.00013698,2]
[333727572,1722415839315,-507.91760424,0.00013698,2]
[333727573,1722415839325,-1502.96,0.00013698,2]
[333727574,1722415839335,-500.0,0.00013698,2]
[333727575,1722415839345,-500.0,0.00013698,2]
[333727576,1722415839354,-500.0,0.00013698,2]
[333727577,1722415839364,-500.0,0.00013698,2]
[333727578,1722415839373,-512.02849162,0.00013698,2]
[333727579,1722415839383,-504.27712946,0.00013698,2]
[333727580,1722415839392,-508.20670461,0.00013698,2]
[333727581,1722415839402,-500.0,0.00013698,2]
[333727582,1722415839411,-520.23699786,0.00013698,2]
[333727583,1722415839421,-562.90123855,0.00013698,2]
[333727584,1722415839431,-500.0,0.00013698,2]
[333727585,1722415839440,-500.0,0.00013698,2]
[333727586,1722415839451,-500.0,0.00013698,2]
[333727587,1722415839461,-502.35185065,0.00013698,2]
[333727588,1722415839471,-500.0,0.00013698,2]
[333727589,1722415839481,-500.0,0.00013698,2]
[333727590,1722415839490,-500.0,0.00013698,2]
[333727591,1722415839500,-500.44903325,0.00013698,2]
[333727592,1722415839509,-500.0,0.00013698,2]
[333727593,1722415839519,-500.0,0.00013698,2]
[333727594,1722415839529,-500.0,0.00013698,2]
[333727595,1722415839538,-500.0,0.00013698,2]
[333727596,1722415839548,-500.0,0.00013698,2]
[333727597,1722415839557,-500.0,0.00013698,2]
[333727598,1722415839567,-618.3759048,0.00013698,2]
[333727599,1722415839576,-500.0,0.00013698,2]
[333727600,1722415839585,-500.0,0.00013698,2]
[333727601,1722415839594,-500.0,0.00013698,2]
[333727602,1722415839604,-500.0,0.00013698,2]
[333727603,1722415839614,-500.0,0.00013698,2]
[333727604,1722415839626,-500.0,0.00013698,2]
[333727605,1722415839636,-522.04139058,0.00013698,2]
[333727606,1722415839645,-500.0,0.00013698,2]
[333727607,1722415839655,-500.0,0.00013698,2]
[333727608,1722415839665,-500.0,0.00013698,2]
[333727609,1722415839674,-500.0,0.00013698,2]
[333727610,1722415839683,-500.0,0.00013698,2]
[333727611,1722415839693,-500.0,0.00013698,2]
[333727612,1722415839705,-500.0,0.00013698,2]
[333727613,1722415839715,-500.0,0.00013698,2]
[333727614,1722415839724,-500.0,0.00013698,2]
[333727615,1722415839733,-500.0,0.00013698,2]
[333727616,1722415839745,-500.0,0.00013698,2]
[333727617,1722415839755,-500.0,0.00013698,2]
[333727618,1722415839764,-511.6,0.00013698,2]
[333727619,1722415839774,-500.0,0.00013698,2]
[333727620,1722415839783,-500.0,0.00013698,2]
[333727621,1722415839794,-500.0,0.00013698,2]
[333727622,1722415839803,-500.0,0.00013698,2]
[333727623,1722415839813,-500.0,0.00013698,2]
[333727624,1722415839822,-500.0,0.00013698,2]
[333727625,1722415839832,-511.1433934,0.00013698,2]
[333727626,1722415839842,-500.0,0.00013698,2]
[333727627,1722415839852,-500.0,0.00013698,2]
[333727628,1722415839862,-744.09,0.00013698,2]
[333727629,1722415839871,-500.0,0.00013698,2]
[333727630,1722415839881,-500.0,0.00013698,2]
[333727631,1722415839891,-500.0,0.00013698,2]
[333727632,1722415839901,-508.45909967,0.00013698,2]
[333727633,1722415839910,-500.0,0.00013698,2]
[333727634,1722415839919,-500.0,0.00013698,2]
[333727635,1722415839929,-500.0,0.00013698,2]
[333727636,1722415839939,-500.0,0.00013698,2]
[333727637,1722415839948,-509.03777539,0.00013698,2]
[333727638,1722415839957,-503.19716598,0.00013698,2]
[333727639,1722415839967,-606.0,0.00013698,2]
[333727640,1722415839976,-500.0,0.00013698,2]
[333727641,1722415839985,-500.0,0.00013698,2]
[333727642,1722415839995,-500.0,0.00013698,2]
[333727643,1722415840004,-151.0,0.00013698,2]
[333727644,1722415840013,-500.0,0.00013698,2]
[333727645,1722415840023,-151.0,0.00013698,2]
[333727646,1722415840032,-151.0,0.00013698,2]
[333727647,1722415840041,-151.0,0.00013698,2]
[333727648,1722415840051,-151.0,0.00013698,2]
[333727649,1722415840061,-502.01566386,0.00013698,2]
[333727650,1722415840070,-500.0,0.00013698,2]
[333727652,1722415840079,-500.0,0.00013698,2]
[333727653,1722415840088,-500.0,0.00013698,2]
[333727654,1722415840098,-659.26,0.00013698,2]
[333727655,1722415840107,-500.0,0.00013698,2]
[333727656,1722415840117,-500.0,0.00013698,2]
[333727657,1722415840127,-151.0,0.00013698,2]
[333727658,1722415840136,-153.183534,0.00013698,2]
[333727659,1722415840146,-500.0,0.00013698,2]
[333727660,1722415840156,-500.0,0.00013698,2]
[333727661,1722415840166,-164.92704275,0.00013698,2]
[333727662,1722415840175,-501.68615931,0.00013698,2]
[333727663,1722415840185,-510.54420126,0.00013698,2]
[333727664,1722415840195,-531.43997851,0.00013698,2]
[333727665,1722415840205,-500.0,0.00013698,2]
[333727666,1722415840215,-500.0,0.00013698,2]
[333727667,1722415840225,-500.0,0.00013698,2]
[333727669,1722415840235,-504.83289733,0.00013698,2]
[333727670,1722415840245,-1325.21,0.00013698,2]
[333727672,1722415840255,-500.0,0.00013698,2]
[333727673,1722415840264,-500.0,0.00013698,2]
[333727674,1722415840273,-520.39022666,0.00013698,2]
[333727675,1722415840283,-500.0,0.00013698,2]
[333727676,1722415840292,-82.08957152,0.00013698,2]
[333727678,1722415840477,-417.91042848,0.00013698,2]
[333727679,1722415840486,-500.0,0.00013698,2]
[333727680,1722415840496,-500.0,0.00013698,2]
[333727681,1722415840506,-500.0,0.00013698,2]
[333727682,1722415840515,-500.0,0.00013698,2]
[333727683,1722415840525,-602.84,0.00013698,2]
[333727684,1722415840535,-500.0,0.00013698,2]
[333727685,1722415840544,-590.78517009,0.00013698,2]
[333727686,1722415840555,-1364.12,0.00013698,2]
[333727687,1722415840565,-342.52461219,0.00013698,2]
[333727688,1722415840576,-500.0,0.00013698,2]
[333727689,1722415840585,-500.0,0.00013698,2]
[333727690,1722415840595,-500.0,0.00013698,2]
[333727691,1722415840604,-500.0,0.00013698,2]
[333727692,1722415840614,-718.22,0.00013698,2]
[333727693,1722415840627,-500.0,0.00013698,2]
[333727694,1722415840639,-500.0,0.00013698,2]
[333727695,1722415840649,-500.0,0.00013698,2]
[333727696,1722415840662,-500.0,0.00013698,2]
[333727697,1722415840671,-500.0,0.00013698,2]
[333727698,1722415840682,-500.0,0.00013698,2]
[333727699,1722415840692,-987.03,0.00013698,2]
[333727700,1722415840705,-500.0,0.00013698,2]
[333727701,1722415840715,-500.0,0.00013698,2]
[333727702,1722415840725,-500.0,0.00013698,2]
[333727703,1722415840735,-500.0,0.00013698,2]
[333727704,1722415840745,-500.0,0.00013698,2]
[333727705,1722415840755,-500.0,0.00013698,2]
[333727706,1722415840764,-503.67364625,0.00013698,2]
[333727707,1722415840773,-132.9364116,0.00013698,2]
[333727708,1722415840786,-367.0635884,0.00013698,2]
[333727709,1722415840796,-151.0,0.00013698,2]
[333727710,1722415840806,-151.0,0.00013698,2]
[333727711,1722415840816,-151.0,0.00013698,2]
[333727712,1722415840826,-151.0,0.00013698,2]
[333727713,1722415840835,-931.74,0.00013698,2]
[333727714,1722415840845,-500.0,0.00013698,2]
[333727715,1722415840854,-500.0,0.00013698,2]
[333727716,1722415840863,-500.0,0.00013698,2]
[333727717,1722415840873,-1117.25,0.00013698,2]
[333727718,1722415840883,-500.0,0.00013698,2]
[333727719,1722415840893,-500.0,0.00013698,2]
[333727720,1722415840902,-991.17,0.00013698,2]
[333727721,1722415840912,-1012.31,0.00013698,2]
[333727722,1722415840922,-500.0,0.00013698,2]
[333727723,1722415840931,-500.0,0.00013698,2]
[333727724,1722415840942,-500.0,0.00013698,2]
[333727725,1722415840952,-234.79330286,0.00013698,2]
[333727726,1722415840961,-500.0,0.00013698,2]
[333727727,1722415840971,-1090.34,0.00013698,2]
[333727728,1722415840981,-904.46,0.00013698,2]
[333727729,1722415840991,-500.0,0.00013698,2]
[333727730,1722415841001,-543.63787766,0.00013698,2]
[333727731,1722415841012,-500.0,0.00013698,2]
[333727732,1722415841021,-520.09439415,0.00013698,2]
[333727733,1722415841031,-500.0,0.00013698,2]
[333727734,1722415841040,-500.0,0.00013698,2]
[333727735,1722415841050,-500.0,0.00013698,2]
[333727736,1722415841059,-500.0,0.00013698,2]
[333727737,1722415841068,-500.0,0.00013698,2]
[333727738,1722415841079,-500.0,0.00013698,2]
[333727739,1722415841088,-500.0,0.00013698,2]
[333727740,1722415841098,-500.0,0.00013698,2]
[333727741,1722415841107,-500.0,0.00013698,2]
[333727742,1722415841117,-892.91,0.00013698,2]
[333727743,1722415841127,-500.0,0.00013698,2]
[333727744,1722415841141,-501.45744488,0.00013698,2]
[333727745,1722415841152,-151.0,0.00013698,2]
[333727746,1722415841161,-152.274227,0.00013698,2]
[333727747,1722415841171,-500.0,0.00013698,2]
[333727748,1722415841181,-500.000001,0.00013698,2]
[333727749,1722415841191,-500.0,0.00013698,2]
[333727750,1722415841202,-500.0,0.00013698,2]
[333727751,1722415841213,-500.0,0.00013698,2]
[333727752,1722415841223,-500.0,0.00013698,2]
[333727753,1722415841233,-518.58772222,0.00013698,2]
[333727754,1722415841243,-500.0,0.00013698,2]
[333727755,1722415841252,-500.0,0.00013698,2]
[333727756,1722415841261,-500.0,0.00013698,2]
[333727757,1722415841270,-500.0,0.00013698,2]
[333727758,1722415841280,-500.0,0.00013698,2]
[333727759,1722415841289,-500.0,0.00013698,2]
[333727760,1722415841297,-500.0,0.00013698,2]
[333727761,1722415841307,-500.0,0.00013698,2]
[333727762,1722415841316,-500.0,0.00013698,2]
[333727763,1722415841326,-500.0,0.00013698,2]
[333727764,1722415841335,-500.0,0.00013698,2]
[333727765,1722415841345,-500.0,0.00013698,2]
[333727766,1722415841355,-500.0,0.00013698,2]
[333727767,1722415841365,-500.0,0.00013698,2]
[333727768,1722415841374,-500.0,0.00013698,2]
[333727769,1722415841386,-500.0,0.00013698,2]
[333727770,1722415841396,-500.0,0.00013698,2]
[333727771,1722415841406,-280.05291229,0.00013698,2]
[333727772,1722415841415,-500.0,0.00013698,2]
[333727773,1722415841425,-572.83793934,0.00013698,2]
[333727774,1722415841434,-500.0,0.00013698,2]
[333727775,1722415841444,-500.0,0.00013698,2]
[333727776,1722415841454,-2502.17,0.00013698,2]
[333727777,1722415841463,-500.0,0.00013698,2]
[333727778,1722415841474,-500.0,0.00013698,2]
[333727779,1722415841483,-576.3983284,0.00013698,2]